[Event "FIDE WCCC G12 2018"]
[Site "Santiago de Compostela"]
[Date "2018.11.07"]
[Round "3"]
[White "Munkhzul, Davaakhuu"]
[Black "Zhou, Lepu Coco"]
[Result "1-0"]
[ECO "C92"]
[WhiteElo "1781"]
[BlackElo "1617"]
[Annotator "NA RC"]
[PlyCount "85"]
[EventDate "2018.11.04"]
[EventType "swiss"]
[EventCountry "ESP"]
[SourceTitle "playchess.com"]
[Source "ChessBase"]
[SourceQuality "1"]
[TimeControl "40/5400+30:1800+30"]

1. e4 {[%emt 0:00:00]} e5 {[%emt 0:00:00]} 2. Nf3 {[%emt 0:00:00]} Nc6 {[%emt 0:00:00]} 3. Bb5 {[%emt 0:00:00]} a6 {[%emt 0:00:00]} 4. Ba4 {[%emt 0:00:00]} Nf6 {[%emt 0:00:00]} 5. O-O {[%emt 0:00:00]} b5 {[%emt 0:00:05]} 6. Bb3 {[%emt 0:00:03]} Be7 {[%emt 0:00:07]} 7. Re1 {[%emt 0:00:09]} O-O {[%emt 0:00:09]} 8. h3 {[%emt 0:00:22]} d6 {[%emt 0:00:21]} 9. c3 {[%emt 0:00:06]} Bb7 {[%emt 0:00:18]} 10. d4 {[%emt 0:00:08]} Nd7 {[%emt 0:00:09]} 11. Nbd2 {[%emt 0:00:21]} Bf6 {[%emt 0:00:10]} 12. Nf1 {[%emt 0:00:36]} Na5 {[%emt 0:01:40]} 13. Bc2 {[%emt 0:00:10]} c5 {[%emt 0:00:27]} 14. d5 {[%emt 0:00:59]} g6 {[%emt 0:01:44]} 15. Ng3 {[%emt 0:00:54]} Bg7 {[%emt 0:00:13]} 16. Nh2 {[%emt 0:01:20]} Nf6 {[%emt 0:02:17]} 17. Rf1 {[%emt 0:00:31]} b4 {[%emt 0:01:31]} 18. cxb4 {[%emt 0:09:36]} cxb4 {[%emt 0:00:11]} 19. b3 {[%emt 0:00:08]} Rc8 {[%emt 0:02:40]} 20. Bd2 {[%emt 0:00:42]} Qb6 {[%emt 0:02:14]} 21. a3 {[%emt 0:00:31]} Qc5 {[%emt 0:06:02]} 22. Rc1 {[%emt 0:01:16]} bxa3 {[%emt 0:03:10]} 23. b4 {[%emt 0:00:25]} Qc7 {[%emt 0:00:12]} 24. bxa5 {[%emt 0:00:14]} a2 {[%emt 0:01:37]} 25. Bb3 {[%emt 0:00:30]} Qxc1 {[%emt 0:15:31]} 26. Qxc1 {[%emt 0:00:09]} Rxc1 {[%emt 0:00:05]} 27. Rxc1 {[%emt 0:00:07]} Nd7 {[%emt 0:04:35]} 28. Bxa2 {[%emt 0:00:11]} Nc5 {[%emt 0:01:05]} 29. Be3 {[%emt 0:01:35]} Nd3 {[%emt 0:01:30]} 30. Rb1 {[%emt 0:00:14]} Bc8 {[%emt 0:01:17]} 31. Bc4 {[%emt 0:00:09]} Nc5 {[%emt 0:00:13]} 32. Bxc5 {[%emt 0:00:07]} dxc5 {[%emt 0:00:05]} 33. Nf3 {[%emt 0:00:30]} Kh8 {[%emt 0:01:00]} 34. Rb6 {[%emt 0:00:44]} f5 {[%emt 0:00:19]} 35. Bxa6 {[%emt 0:00:13]} f4 {[%emt 0:02:53]} 36. Ne2 {[%emt 0:00:30]} Bxa6 {[%emt 0:02:46]} 37. Rxa6 {[%emt 0:00:02]} Re8 {[%emt 0:01:15]} 38. Rc6 {[%emt 0:00:02]} Bf8 {[%emt 0:00:56]} 39. a6 {[%emt 0:00:11]} Kg8 {[%emt 0:01:48]} 40. Nc3 {[%emt 0:00:00]} Ra8 {[%emt 0:00:00]} 41. Nb5 {[%emt 0:00:45]} Rb8 {[%emt 0:08:17]} 42. a7 {[%emt 0:00:12]} Ra8 {[%emt 0:05:11]} 43. Nxe5 {[%emt 0:03:02]} 1-0

[Event "FIDE WCCC G12 2018"]
[Site "Santiago de Compostela"]
[Date "2018.11.07"]
[Round "3"]
[White "Sheikh, Anum"]
[Black "Enkhsaran, Batsaikhan"]
[Result "0-1"]
[ECO "C45"]
[WhiteElo "1770"]
[BlackElo "1614"]
[Annotator "NA RC"]
[PlyCount "60"]
[EventDate "2018.11.04"]
[EventType "swiss"]
[EventCountry "ESP"]
[SourceTitle "playchess.com"]
[Source "ChessBase"]
[SourceQuality "1"]
[TimeControl "40/5400+30:1800+30"]

1. e4 {[%emt 0:00:00]} e5 {[%emt 0:00:00]} 2. Nf3 {[%emt 0:00:00]} Nc6 {[%emt 0:00:01]} 3. d4 {[%emt 0:00:05]} exd4 {[%emt 0:00:23]} 4. Nxd4 {[%emt 0:00:08]} Nf6 {[%emt 0:00:10]} 5. Nxc6 {[%emt 0:00:14]} bxc6 {[%emt 0:00:21]} 6. e5 {[%emt 0:02:01]} Qe7 {[%emt 0:00:23]} 7. Qe2 {[%emt 0:00:07]} Nd5 {[%emt 0:00:35]} 8. h4 {[%emt 0:02:39]} Qe6 {[%emt 0:01:32]} 9. c4 {[%emt 0:05:27]} Nb6 {[%emt 0:00:15]} 10. Nc3 {[%emt 0:02:39]} d6 {[%emt 0:02:17]} 11. exd6 {[%emt 0:01:30]} cxd6 {[%emt 0:00:13]} 12. Be3 {[%emt 0:05:59]} Be7 {[%emt 0:08:05]} 13. g3 {[%emt 0:03:05]} Bf6 {[%emt 0:03:34]} 14. Rc1 {[%emt 0:03:05]} Ba6 {[%emt 0:03:57]} 15. b3 {[%emt 0:00:49]} O-O 16. Bg2 {[%emt 0:23:34]} d5 {[%emt 0:22:16]} 17. Bxb6 {[%emt 0:04:11]} axb6 {[%emt 0:01:54]} 18. Qxe6 {[%emt 0:02:34]} fxe6 {[%emt 0:00:48]} 19. O-O {[%emt 0:07:03]} Bd4 {[%emt 0:06:26]} 20. Ne2 {[%emt 0:02:37]} Bc5 {[%emt 0:02:54]} 21. Bh3 {[%emt 0:04:41]} e5 {[%emt 0:01:09]} 22. Rc2 {[%emt 0:03:39]} Rf6 {[%emt 0:07:24]} 23. Nc1 {[%emt 0:13:04]} e4 {[%emt 0:04:45]} 24. Re1 {[%emt 0:02:07]} Raf8 {[%emt 0:03:46]} 25. Ree2 {[%emt 0:00:33]} Rf3 {[%emt 0:01:27]} 26. Kg2 {[%emt 0:00:49]} d4 {[%emt 0:06:50]} 27. Rxe4 {[%emt 0:02:07]} d3 {[%emt 0:00:15]} 28. Rd2 {[%emt 0:00:48]} Rxf2+ {[%emt 0:00:19]} 29. Rxf2 {[%emt 0:00:08]} Rxf2+ {[%emt 0:00:07]} 30. Kh1 {[%emt 0:00:11]} d2 {[%emt 0:00:25]} 0-1

[Event "FIDE WCCC G12 2018"]
[Site "Santiago de Compostela"]
[Date "2018.11.07"]
[Round "3"]
[White "Wagner, Margarethe"]
[Black "Zhu, Jenny"]
[Result "1-0"]
[ECO "B42"]
[WhiteElo "1766"]
[BlackElo "1242"]
[Annotator "NA RC"]
[PlyCount "133"]
[EventDate "2018.11.04"]
[EventType "swiss"]
[EventCountry "ESP"]
[SourceTitle "playchess.com"]
[Source "ChessBase"]
[SourceQuality "1"]
[TimeControl "40/5400+30:1800+30"]

1. e4 {[%emt 0:00:00]} c5 {[%emt 0:00:00]} 2. Nf3 {[%emt 0:00:00]} e6 {[%emt 0:00:00]} 3. d4 {[%emt 0:00:00]} cxd4 {[%emt 0:00:00]} 4. Nxd4 {[%emt 0:00:10]} a6 {[%emt 0:00:19]} 5. Bd3 {[%emt 0:00:34]} Nf6 {[%emt 0:00:28]} 6. Qe2 {[%emt 0:03:05]} d6 {[%emt 0:02:59]} 7. c4 {[%emt 0:03:24]} g6 {[%emt 0:01:57]} 8. Nc3 {[%emt 0:01:52]} Bg7 {[%emt 0:01:59]} 9. Be3 {[%emt 0:01:39]} Nbd7 {[%emt 0:03:50]} 10. h3 {[%emt 0:05:08]} O-O {[%emt 0:07:47]} 11. O-O {[%emt 0:02:24]} Ne5 {[%emt 0:00:52]} 12. f4 {[%emt 0:03:17]} Nxd3 {[%emt 0:00:40]} 13. Qxd3 {[%emt 0:00:18]} Qc7 {[%emt 0:14:33]} 14. Rac1 {[%emt 0:07:59]} Bd7 {[%emt 0:04:36]} 15. f5 {[%emt 0:03:36]} Rac8 {[%emt 0:11:00]} 16. b3 {[%emt 0:02:57]} Qa5 {[%emt 0:18:23]} 17. fxe6 {[%emt 0:07:55]} fxe6 {[%emt 0:00:23]} 18. Nf3 {[%emt 0:01:48]} Qc7 {[%emt 0:02:50]} 19. Rfd1 {[%emt 0:01:44]} Ne8 {[%emt 0:12:25]} 20. Bg5 {[%emt 0:04:01]} Qc5+ {[%emt 0:01:32]} 21. Be3 {[%emt 0:03:08]} Qc7 {[%emt 0:01:42]} 22. Kh1 {[%emt 0:03:41]} Bc6 {[%emt 0:01:17]} 23. Ne2 {[%emt 0:03:44]} Rd8 {[%emt 0:04:06]} 24. Ned4 {[%emt 0:03:25]} Qd7 {[%emt 0:01:02]} 25. Ng5 {[%emt 0:05:40]} Nc7 {[%emt 0:01:03]} 26. Rf1 {[%emt 0:08:03]} d5 {[%emt 0:00:53]} 27. Nxc6 {[%emt 0:02:05]} bxc6 {[%emt 0:00:07]} 28. cxd5 {[%emt 0:01:13]} cxd5 {[%emt 0:00:52]} 29. Bb6 {[%emt 0:01:35]} Rc8 {[%emt 0:01:00]} 30. Bxc7 {[%emt 0:00:46]} Rxc7 {[%emt 0:00:37]} 31. Rxc7 {[%emt 0:02:08]} Rxf1+ {[%emt 0:00:40]} 32. Qxf1 {[%emt 0:00:12]} Qxc7 {[%emt 0:00:05]} 33. Nxe6 {[%emt 0:00:17]} Qe5 {[%emt 0:01:13]} 34. Nxg7 {[%emt 0:02:25]} Kxg7 {[%emt 0:00:12]} 35. exd5 {[%emt 0:01:24]} Qxd5 {[%emt 0:00:10]} 36. Qxa6 {[%emt 0:01:21]} Qd1+ {[%emt 0:00:17]} 37. Kh2 {[%emt 0:00:18]} Qe1 {[%emt 0:00:40]} 38. Qa7+ {[%emt 0:01:00]} Kh6 {[%emt 0:00:35]} 39. Qd4 {[%emt 0:02:49]} Qb1 {[%emt 0:00:50]} 40. Qf4+ {[%emt 0:00:00]} Kg7 {[%emt 0:00:00]} 41. Qe5+ {[%emt 0:01:16]} Kg8 {[%emt 0:01:34]} 42. Qe6+ {[%emt 0:01:06]} Kg7 {[%emt 0:00:59]} 43. a4 {[%emt 0:00:52]} Qa1 {[%emt 0:02:57]} 44. Qe7+ {[%emt 0:02:49]} Kh6 {[%emt 0:02:36]} 45. Qf8+ {[%emt 0:01:31]} Kg5 {[%emt 0:00:23]} 46. Qc5+ {[%emt 0:05:30]} Kh6 {[%emt 0:00:19]} 47. a5 {[%emt 0:01:06]} Qf1 {[%emt 0:00:36]} 48. Qe3+ {[%emt 0:01:30]} Kg7 {[%emt 0:00:46]} 49. Qe5+ {[%emt 0:01:03]} Kh6 {[%emt 0:03:01]} 50. b4 {[%emt 0:01:30]} Qa6 {[%emt 0:02:04]} 51. Qc7 {[%emt 0:02:31]} Qb5 {[%emt 0:01:15]} 52. Qc5 {[%emt 0:03:56]} Qa6 {[%emt 0:02:03]} 53. Qb6 {[%emt 0:02:27]} Qe2 {[%emt 0:01:33]} 54. Qf6 {[%emt 0:03:33]} Qe8 {[%emt 0:01:47]} 55. Qf4+ {[%emt 0:01:58]} Kh5 {[%emt 0:03:08]} 56. a6 {[%emt 0:01:15]} Qa4 {[%emt 0:01:16]} 57. Qg4+ {[%emt 0:00:37]} Kh6 {[%emt 0:00:12]} 58. Qh4+ {[%emt 0:00:22]} Kg7 {[%emt 0:00:15]} 59. Qe7+ {[%emt 0:00:25]} Kh6 {[%emt 0:00:27]} 60. a7 {[%emt 0:00:38]} Kh5 {[%emt 0:00:58]} 61. g4+ {[%emt 0:01:28]} Kh6 {[%emt 0:00:13]} 62. Qf8+ {[%emt 0:00:39]} Kg5 {[%emt 0:00:05]} 63. Qd8+ {[%emt 0:01:25]} Kh6 {[%emt 0:00:56]} 64. a8=Q {[%emt 0:00:15]} Qc2+ {[%emt 0:00:08]} 65. Qg2 {[%emt 0:00:13]} Qc4 {[%emt 0:00:55]} 66. Qgd2+ {[%emt 0:00:38]} Kg7 {[%emt 0:00:12]} 67. Qe7+ 1-0

[Event "FIDE WCCC G12 2018"]
[Site "Santiago de Compostela"]
[Date "2018.11.07"]
[Round "3"]
[White "Dakic, Marta"]
[Black "Berezovsky, Fiorina"]
[Result "1-0"]
[ECO "B30"]
[WhiteElo "1756"]
[BlackElo "1492"]
[Annotator "NA RC"]
[PlyCount "73"]
[EventDate "2018.11.04"]
[EventType "swiss"]
[EventCountry "ESP"]
[SourceTitle "playchess.com"]
[Source "ChessBase"]
[SourceQuality "1"]
[TimeControl "40/5400+30:1800+30"]

1. e4 {[%emt 0:00:00]} c5 {[%emt 0:00:00]} 2. Nf3 {[%emt 0:00:00]} Nc6 {[%emt 0:00:00]} 3. Nc3 {[%emt 0:00:00]} d6 {[%emt 0:03:08]} 4. Bc4 {[%emt 0:03:15]} e6 {[%emt 0:01:57]} 5. d3 {[%emt 0:02:24]} Nf6 {[%emt 0:00:56]} 6. O-O {[%emt 0:00:36]} Be7 {[%emt 0:01:42]} 7. h3 {[%emt 0:02:34]} O-O {[%emt 0:01:13]} 8. a3 {[%emt 0:07:00]} d5 {[%emt 0:02:26]} 9. Ba2 {[%emt 0:04:27]} d4 {[%emt 0:06:04]} 10. Ne2 {[%emt 0:01:06]} b5 {[%emt 0:05:12]} 11. Nh2 {[%emt 0:07:24]} Bb7 {[%emt 0:02:47]} 12. f4 {[%emt 0:00:46]} a5 {[%emt 0:05:57]} 13. f5 {[%emt 0:04:40]} exf5 {[%emt 0:05:45]} 14. Rxf5 {[%emt 0:00:28]} Bc8 {[%emt 0:01:09]} 15. Rf1 {[%emt 0:01:09]} Be6 {[%emt 0:04:23]} 16. Bxe6 {[%emt 0:03:47]} fxe6 {[%emt 0:00:29]} 17. Nf4 {[%emt 0:01:48]} Qd7 {[%emt 0:02:38]} 18. Bd2 {[%emt 0:02:36]} c4 {[%emt 0:01:54]} 19. Qe2 {[%emt 0:01:45]} Ne5 {[%emt 0:06:34]} 20. Rad1 {[%emt 0:04:15]} Rfc8 {[%emt 0:02:30]} 21. Nf3 {[%emt 0:04:14]} Nxf3+ {[%emt 0:02:07]} 22. Qxf3 {[%emt 0:00:24]} b4 {[%emt 0:01:17]} 23. axb4 {[%emt 0:02:19]} axb4 {[%emt 0:01:15]} 24. e5 {[%emt 0:00:20]} Ne8 {[%emt 0:08:24]} 25. Nd5 {[%emt 0:05:27]} Bc5 {[%emt 0:07:15]} 26. Nb6 {[%emt 0:00:59]} Qa7 {[%emt 0:03:11]} 27. Nxa8 {[%emt 0:00:26]} Rxa8 {[%emt 0:00:56]} 28. Ra1 {[%emt 0:01:27]} Qxa1 {[%emt 0:01:03]} 29. Qf7+ {[%emt 0:00:06]} Kh8 {[%emt 0:00:07]} 30. Rxa1 {[%emt 0:00:05]} Rxa1+ {[%emt 0:00:27]} 31. Kh2 {[%emt 0:00:50]} Ra8 {[%emt 0:01:12]} 32. Qxe6 {[%emt 0:00:22]} c3 {[%emt 0:05:48]} 33. bxc3 {[%emt 0:00:12]} bxc3 {[%emt 0:01:05]} 34. Bxc3 {[%emt 0:02:24]} dxc3 {[%emt 0:00:32]} 35. Qc6 {[%emt 0:00:07]} Nc7 {[%emt 0:01:43]} 36. Qxc5 {[%emt 0:00:07]} Ne6 {[%emt 0:00:59]} 37. Qc6 {[%emt 0:00:23]} 1-0

[Event "FIDE WCCC G12 2018"]
[Site "Santiago de Compostela"]
[Date "2018.11.07"]
[Round "3"]
[White "Volovich, Julia"]
[Black "Vicze, Kata"]
[Result "1-0"]
[ECO "D50"]
[WhiteElo "1735"]
[BlackElo "1828"]
[Annotator "NA RC"]
[PlyCount "62"]
[EventDate "2018.11.04"]
[EventType "swiss"]
[EventCountry "ESP"]
[SourceTitle "playchess.com"]
[Source "ChessBase"]
[SourceQuality "1"]
[TimeControl "40/5400+30:1800+30"]

{[%evp 18,61,157,156,226,232,279,290,294,193,234,193,214,103,152,139,208,147,137,139,137,136,160,150,190,167,291,316,327,336,461,493,460,484,555,596,606,32767,32767,32767,570,545,589,657,981,958]} 1. d4 {[%emt 0:00:00]} d5 {[%emt 0:00:00]} 2. c4 {[%emt 0:00:00]} e6 {[%emt 0:00:03]} 3. Nc3 {[%emt 0:00:00]} Nf6 {[%emt 0:00:26]} 4. Bg5 {[%emt 0:00:00]} dxc4 {[%emt 0:01:41]} 5. e3 {[%emt 0:00:43]} c5 {[%emt 0:03:24] D50: Damengambit (Canal/Prins-Gambit)} 6. dxc5 {[%emt 0:06:40]} Qxd1+ {[%emt 0:13:24]} 7. Rxd1 {[%emt 0:01:44]} Nc6 $146 {[%emt 0:03:03]} ({Vorgänger:} 7... Bxc5 8. Bxc4 a6 9. Nf3 Nbd7 10. Nd2 b5 11. Be2 Bb7 12. O-O Be7 13. Bf3 Bxf3 14. Nxf3 {½-½ (42) Akobian,V (2640)-Swiercz,D (2654) Saint Louis 2018}) 8. Nb5 {[%emt 0:05:29]} Ke7 {[%emt 0:08:59]} 9. Bxc4 {[%emt 0:08:29]} Bd7 {[%emt 0:04:31]} 10. Nd6 {[%emt 0:02:44]} Na5 {[%emt 0:07:25]} (10... h6 {was necessary.}) 11. Be2 {[%emt 0:07:41]} b6 {[%emt 0:04:06]} 12. b4 {[%emt 0:05:32]} Ba4 {[%emt 0:02:37]} 13. Rd2 {[%emt 0:06:18]} Nc6 {[%emt 0:01:37]} 14. b5 {[%emt 0:01:29]} Nb4 {[%emt 0:05:40]} 15. c6 {[%emt 0:03:57]} (15. Ne4 $18 {bietet bessere Gewinnchancen.}) 15... Nbd5 {[%emt 0:03:18]} 16. Nb7 {[%emt 0:07:48]} Ke8 {[%emt 0:04:38]} (16... h6 $16 {was necessary.}) 17. Rd4 {[%emt 0:02:15]} Bb4+ {[%emt 0:02:38]} 18. Kf1 {[%emt 0:00:46]} e5 {[%emt 0:03:21]} 19. Rh4 {[%emt 0:01:41]} a6 {[%emt 0:01:41]} 20. a3 {[%emt 0:02:38]} ({Much weaker is} 20. bxa6 $6 Bxc6 21. Nf3 Nd7 $14) 20... Bxb5 {[%emt 0:04:40]} 21. axb4 {[%emt 0:00:45]} Bxc6 {[%emt 0:01:10]} (21... Ke7 $16) 22. Nd6+ {[%emt 0:01:23]} Ke7 {[%emt 0:01:39]} 23. Nf5+ {[%emt 0:00:50]} Kd7 {[%emt 0:03:02]} (23... Kf8 {keeps fighting.} 24. Nf3 Re8) 24. Nf3 {[%emt 0:01:57]} e4 {[%emt 0:01:22]} 25. Ne5+ {[%emt 0:03:31]} Kc7 {[%emt 0:01:21]} 26. Nxc6 {[%emt 0:01:13]} Kxc6 {[%emt 0:00:11]} 27. Bc4 {[%emt 0:01:41]} Nxb4 {[%emt 0:00:40]} 28. Bxf6 {[%emt 0:01:37]} gxf6 {[%emt 0:02:04]} 29. Rxe4 {[%emt 0:00:37]} a5 {[%emt 0:00:45]} 30. Ke2 {[%emt 0:01:05]} a4 {[%emt 0:00:36]} 31. Rc1 $18 {[%emt 0:02:13]} Kd7 1-0

[Event "FIDE WCCC G12 2018"]
[Site "Santiago de Compostela"]
[Date "2018.11.07"]
[Round "3"]
[White "Wang, Ellen"]
[Black "Shuqja, Klean"]
[Result "0-1"]
[ECO "B01"]
[WhiteElo "1711"]
[BlackElo "1798"]
[Annotator "NA RC"]
[PlyCount "132"]
[EventDate "2018.11.04"]
[EventType "swiss"]
[EventCountry "ESP"]
[SourceTitle "playchess.com"]
[Source "ChessBase"]
[SourceQuality "1"]
[TimeControl "40/5400+30:1800+30"]

1. e4 {[%emt 0:00:00]} d5 {[%emt 0:00:00]} 2. exd5 {[%emt 0:00:00]} Qxd5 {[%emt 0:00:00]} 3. Nc3 {[%emt 0:00:00]} Qd8 {[%emt 0:00:00]} 4. d4 {[%emt 0:00:00]} Nf6 {[%emt 0:00:00]} 5. Bc4 {[%emt 0:00:00]} a6 {[%emt 0:00:00]} 6. Nf3 {[%emt 0:00:03]} b5 {[%emt 0:00:00]} 7. Be2 {[%emt 0:00:06]} Bb7 {[%emt 0:04:43]} 8. O-O {[%emt 0:00:08]} e6 {[%emt 0:01:37]} 9. Ne5 {[%emt 0:00:05]} Nbd7 {[%emt 0:13:41]} 10. Bf3 {[%emt 0:07:29]} Bxf3 {[%emt 0:15:17]} 11. Qxf3 {[%emt 0:00:20]} Bd6 {[%emt 0:10:31]} 12. Nc6 {[%emt 0:08:56]} Qc8 {[%emt 0:00:35]} 13. d5 {[%emt 0:03:38]} e5 {[%emt 0:15:16]} 14. Qg3 {[%emt 0:08:29]} O-O {[%emt 0:01:33]} 15. Bh6 {[%emt 0:02:39]} Ne8 {[%emt 0:03:23]} 16. Ne4 {[%emt 0:05:44]} Kh8 {[%emt 0:01:41]} 17. Bd2 {[%emt 0:03:25]} Nb6 {[%emt 0:05:49]} 18. Qb3 {[%emt 0:08:07]} Qf5 {[%emt 0:02:11]} 19. f3 {[%emt 0:03:33]} h6 {[%emt 0:04:55]} 20. Be3 {[%emt 0:06:10]} Nc4 {[%emt 0:01:45]} 21. Bf2 {[%emt 0:03:06]} Nf6 {[%emt 0:01:31]} 22. Nxf6 {[%emt 0:02:50]} Qxf6 {[%emt 0:00:16]} 23. Rad1 {[%emt 0:01:10]} Rfe8 {[%emt 0:06:01]} 24. Rfe1 {[%emt 0:02:16]} e4 {[%emt 0:04:50]} 25. fxe4 {[%emt 0:08:03]} Bxh2+ {[%emt 0:00:21]} 26. Kxh2 {[%emt 0:00:07]} Qxf2 {[%emt 0:00:02]} 27. Rf1 {[%emt 0:03:42]} Qh4+ {[%emt 0:00:26]} 28. Kg1 {[%emt 0:01:08]} Rxe4 {[%emt 0:03:02]} 29. Qf3 {[%emt 0:02:11]} Rae8 {[%emt 0:01:15]} 30. Qf2 {[%emt 0:01:47]} Qg4 {[%emt 0:01:07]} 31. Rde1 {[%emt 0:01:11]} Ne3 {[%emt 0:02:45]} 32. Qf3 {[%emt 0:01:02]} Qh4 {[%emt 0:00:45]} 33. Rf2 {[%emt 0:01:14]} Nxc2 {[%emt 0:00:35]} 34. Rxe4 {[%emt 0:02:16]} Rxe4 {[%emt 0:00:06]} 35. Qxf7 {[%emt 0:00:21]} Re1+ {[%emt 0:00:32]} 36. Rf1 {[%emt 0:00:05]} Rxf1+ {[%emt 0:00:16]} 37. Qxf1 {[%emt 0:00:19]} Qe1 {[%emt 0:00:07]} 38. Qxe1 {[%emt 0:00:40]} Nxe1 {[%emt 0:00:01]} 39. Nb4 {[%emt 0:00:09]} a5 {[%emt 0:00:26]} 40. Na6 {[%emt 0:00:00]} Nd3 {[%emt 0:00:00]} 41. Nxc7 {[%emt 0:00:17]} b4 {[%emt 0:04:22]} 42. d6 {[%emt 0:02:15]} Nc5 {[%emt 0:02:18]} 43. Kf1 {[%emt 0:03:07]} Kg8 {[%emt 0:01:40]} 44. Ke2 {[%emt 0:01:11]} Kf7 {[%emt 0:01:09]} 45. Ke3 {[%emt 0:00:21]} Nb7 {[%emt 0:05:57]} 46. Kd4 {[%emt 0:03:38]} Nxd6 {[%emt 0:01:54]} 47. Kd5 {[%emt 0:00:22]} Ke7 {[%emt 0:01:35]} 48. g4 {[%emt 0:01:57]} Ne8 {[%emt 0:07:27]} 49. Nb5 {[%emt 0:04:57]} Nf6+ {[%emt 0:01:34]} 50. Ke5 {[%emt 0:00:30]} Nxg4+ {[%emt 0:00:22]} 51. Kf5 {[%emt 0:00:05]} Ne3+ {[%emt 0:01:11]} 52. Kg6 {[%emt 0:00:28]} Nd1 {[%emt 0:03:38]} 53. Nd4 {[%emt 0:06:03]} Kd6 {[%emt 0:02:27]} 54. Kxg7 {[%emt 0:06:01]} Kd5 {[%emt 0:01:30]} 55. Nf5 {[%emt 0:01:45]} Kc4 {[%emt 0:02:03]} 56. b3+ {[%emt 0:01:18]} Kb5 {[%emt 0:00:52]} 57. Kxh6 {[%emt 0:00:49]} Nc3 {[%emt 0:00:08]} 58. Nd6+ {[%emt 0:02:35]} Ka6 {[%emt 0:00:49]} 59. Kg5 {[%emt 0:01:05]} Nxa2 {[%emt 0:00:19]} 60. Nc4 {[%emt 0:00:38]} Kb5 {[%emt 0:00:45]} 61. Nd2 {[%emt 0:00:43]} Kc5 {[%emt 0:00:34]} 62. Kf4 {[%emt 0:03:13]} Kd4 {[%emt 0:00:09]} 63. Nc4 {[%emt 0:03:58]} a4 {[%emt 0:00:11]} 64. Na5 {[%emt 0:01:08]} a3 {[%emt 0:00:22]} 65. Nc4 {[%emt 0:00:19]} Kc3 {[%emt 0:00:18]} 66. Ke3 {[%emt 0:00:12]} Nc1 {[%emt 0:00:11]} 0-1

[Event "FIDE WCCC G12 2018"]
[Site "Santiago de Compostela"]
[Date "2018.11.07"]
[Round "3"]
[White "Lobo Pereira, Arami"]
[Black "Zvereva, Margarita"]
[Result "0-1"]
[ECO "D35"]
[WhiteElo "1592"]
[BlackElo "1787"]
[Annotator "NA RC"]
[PlyCount "120"]
[EventDate "2018.11.04"]
[EventType "swiss"]
[EventCountry "ESP"]
[SourceTitle "playchess.com"]
[Source "ChessBase"]
[SourceQuality "1"]
[TimeControl "40/5400+30:1800+30"]

1. d4 {[%emt 0:00:00]} d5 {[%emt 0:00:00]} 2. c4 {[%emt 0:00:00]} e6 {[%emt 0:00:00]} 3. Nc3 {[%emt 0:00:00]} Nf6 {[%emt 0:00:00]} 4. cxd5 {[%emt 0:00:31]} exd5 {[%emt 0:00:00]} 5. Bg5 {[%emt 0:00:48]} Be7 {[%emt 0:00:28]} 6. e3 {[%emt 0:01:00]} O-O {[%emt 0:00:38]} 7. Bd3 {[%emt 0:01:19]} Nbd7 {[%emt 0:00:41]} 8. Nge2 {[%emt 0:01:38]} Re8 {[%emt 0:01:35]} 9. O-O {[%emt 0:03:25]} c6 {[%emt 0:00:28]} 10. f3 {[%emt 0:02:46]} Nf8 {[%emt 0:00:34]} 11. e4 {[%emt 0:06:44]} dxe4 {[%emt 0:09:03]} 12. fxe4 {[%emt 0:02:42]} Ng4 {[%emt 0:12:20]} 13. Bxe7 {[%emt 0:01:29]} Rxe7 {[%emt 0:00:22]} 14. Qd2 {[%emt 0:06:40]} Ne6 {[%emt 0:05:14]} 15. h3 {[%emt 0:04:23]} Nf6 {[%emt 0:00:54]} 16. e5 {[%emt 0:06:19]} Nd7 {[%emt 0:04:46]} 17. Ne4 {[%emt 0:05:14]} Qb6 {[%emt 0:10:10]} 18. Qc3 {[%emt 0:04:44]} Nxe5 {[%emt 0:03:42]} 19. Kh1 {[%emt 0:00:59]} Nxd3 {[%emt 0:01:22]} 20. Qxd3 {[%emt 0:00:12]} Qc7 {[%emt 0:18:57]} 21. Rf3 {[%emt 0:02:31]} Nf8 {[%emt 0:03:57]} 22. Rg3 {[%emt 0:02:27]} Ng6 {[%emt 0:06:08]} 23. Rf1 {[%emt 0:04:34]} Be6 {[%emt 0:00:45]} 24. h4 {[%emt 0:03:35]} Bd5 {[%emt 0:01:01]} 25. N4c3 {[%emt 0:02:45]} Nxh4 {[%emt 0:13:29]} 26. Nxd5 {[%emt 0:00:29]} cxd5 {[%emt 0:00:04]} 27. Rh3 {[%emt 0:00:21]} Ng6 {[%emt 0:01:05]} 28. Nf4 {[%emt 0:01:47]} Qc4 {[%emt 0:03:02]} 29. Nxg6 {[%emt 0:01:59]} hxg6 {[%emt 0:00:51]} 30. Qxc4 {[%emt 0:01:39]} dxc4 {[%emt 0:00:07]} 31. Rc1 {[%emt 0:00:02]} b5 {[%emt 0:00:58]} 32. Rc2 {[%emt 0:00:28]} Re4 {[%emt 0:00:33]} 33. a4 {[%emt 0:00:41]} a6 {[%emt 0:00:27]} 34. axb5 {[%emt 0:00:27]} axb5 {[%emt 0:00:02]} 35. d5 {[%emt 0:00:31]} Ra1+ {[%emt 0:00:42]} 36. Kh2 {[%emt 0:00:06]} Rd1 {[%emt 0:00:06]} 37. b3 {[%emt 0:00:10]} Rxd5 {[%emt 0:00:34]} 38. bxc4 {[%emt 0:00:08]} bxc4 {[%emt 0:01:16]} 39. Ra2 {[%emt 0:00:10]} Rh5 {[%emt 0:01:02]} 40. Ra8+ {[%emt 0:00:00]} Kh7 {[%emt 0:00:00]} 41. Rxh5+ {[%emt 0:01:23]} gxh5 {[%emt 0:00:09]} 42. Ra4 {[%emt 0:00:16]} Rg4 {[%emt 0:02:43]} 43. Ra5 {[%emt 0:00:15]} g6 {[%emt 0:00:53]} 44. Ra7 {[%emt 0:00:18]} Kg7 {[%emt 0:00:15]} 45. Rc7 {[%emt 0:00:06]} Kf6 {[%emt 0:03:10]} 46. Kg1 {[%emt 0:00:18]} Ke6 {[%emt 0:01:13]} 47. Rc6+ {[%emt 0:00:23]} Ke5 {[%emt 0:01:00]} 48. Rc7 {[%emt 0:00:41]} f5 {[%emt 0:01:05]} 49. Re7+ {[%emt 0:00:41]} Kd4 {[%emt 0:00:14]} 50. Rd7+ {[%emt 0:00:12]} Kc3 {[%emt 0:00:22]} 51. Kf2 {[%emt 0:00:15]} Kc2 {[%emt 0:00:33]} 52. g3 {[%emt 0:00:20]} c3 {[%emt 0:00:21]} 53. Re7 {[%emt 0:00:17]} Kb2 {[%emt 0:00:45]} 54. Rb7+ {[%emt 0:00:04]} Kc1 {[%emt 0:00:19]} 55. Rb3 {[%emt 0:00:31]} Kc2 {[%emt 0:00:48]} 56. Rb7 {[%emt 0:00:10]} Re4 {[%emt 0:00:34]} 57. Rd7 {[%emt 0:00:17]} Kc1 {[%emt 0:00:17]} 58. Rd6 {[%emt 0:00:22]} c2 {[%emt 0:00:18]} 59. Rxg6 {[%emt 0:00:10]} Kb2 {[%emt 0:00:13]} 60. Rb6+ {[%emt 0:00:08]} Kc3 {[%emt 0:00:05]} 0-1